bitfinex-derivatives/quotes_ETHF0:USTF0_20260221
["timestamp","ask_amount","ask_price","bid_price","bid_amount"]
[1771664909485,2.4206066,1969.2,1968.5,3.85076227]
[1771664914992,6.678118,1969.2,1968.5,3.85076227]
[1771664915191,2.20264155,1969.1,1968.5,3.85076227]
[1771664917090,2.20264155,1969.1,1968.4,2.19915639]
[1771664917388,2.20264155,1969.0,1968.4,2.19915639]
[1771664929194,2.19259303,1968.8,1968.2,2.08196391]
[1771664929493,2.19259303,1968.8,1968.1,2.08196391]
[1771664929894,2.19259303,1968.7,1968.1,2.08196391]
[1771664930795,2.19259303,1968.7,1968.0,2.08196391]
[1771664941209,2.19259303,1968.7,1968.1,2.08196391]
[1771664948412,2.08408884,1968.5,1968.1,2.08196391]
[1771664953425,1.65160588,1968.6,1967.7,0.86485359]
[1771664953426,2.15243446,1968.1,1967.7,0.86485359]
[1771664953616,2.15243446,1968.1,1967.4,1.90323527]
[1771664954512,2.15715998,1968.1,1967.4,1.90691677]
[1771664954919,2.15715998,1968.1,1967.6,1.87116318]
[1771664955720,2.15243446,1968.5,1968.0,1.98843686]
[1771664956815,2.15767718,1968.5,1968.0,1.98843686]
[1771664968622,0.00524272,1968.5,1968.0,1.98843686]
[1771664968828,2.15243446,1968.7,1968.0,1.98843686]
[1771664969732,2.1571965,1968.7,1968.0,1.98843686]
[1771664970529,0.00476204,1968.7,1968.0,1.98843686]
[1771664972929,2.1571965,1968.7,1968.0,1.98843686]
[1771664985242,2.1571965,1968.7,1967.9,1.84753077]
[1771664988849,1.94895911,1968.6,1967.9,1.84753077]
[1771664989236,1.94895911,1968.6,1967.7,1.84965446]
[1771664989442,1.94895911,1968.5,1967.7,1.84965446]
[1771664993241,1.94895911,1968.4,1967.7,1.84965446]
[1771665004162,1.94895911,1968.4,1967.5,1.7356492]
[1771665004458,1.94895911,1968.3,1967.5,1.7356492]
[1771665007258,1.94895911,1968.3,1967.6,1.7080675]
[1771665007555,2.03184657,1968.4,1967.6,1.7080675]
[1771665015067,1.87639291,1968.5,1967.8,1.65273451]
[1771665025968,1.87639291,1968.5,1967.9,3.25397728]
[1771665026968,1.87639291,1968.5,1968.0,1.59951752]
[1771665032272,1.87639291,1968.5,1967.9,3.21273762]
[1771665044893,1.87639291,1968.5,1967.9,1.5602105]
[1771665050197,1.87639291,1968.5,1967.7,9.44202044]
[1771665050398,1.87639291,1968.5,1967.8,1.43909613]
[1771665062012,1.65252712,1968.4,1967.8,1.43909613]
[1771665062212,1.85334594,1968.3,1967.7,1.38313336]
[1771665067117,1.85334594,1968.3,1967.6,1.37667852]
[1771665067508,1.85334594,1968.2,1967.6,1.37667852]
[1771665067711,1.79563109,1968.1,1967.6,1.37667852]
[1771665071519,1.79563109,1968.1,1967.5,1.368278]
[1771665074119,1.79563109,1968.1,1967.4,1.36203364]
[1771665081221,1.79563109,1968.1,1967.4,0.0036815]
[1771665081415,1.79563109,1968.1,1967.4,1.32510172]
[1771665083823,1.79563109,1968.1,1967.4,0.0036815]
[1771665084523,1.7642189,1967.9,1967.4,0.0036815]
[1771665089130,1.7642189,1967.9,1967.3,1.3076634]
[1771665090028,1.7642189,1967.9,1967.3,1.31177787]
[1771665091728,1.7642189,1967.9,1967.3,1.24807304]
[1771665092729,1.7642189,1967.9,1967.3,0.00411447]
[1771665096427,1.7642189,1967.9,1967.0,1.21835895]
[1771665097433,1.7642189,1967.9,1967.0,1.22453069]
[1771665109247,1.7642189,1967.9,1967.1,1.17206808]
[1771665110637,1.72612272,1968.2,1967.4,1.17385953]
[1771665139167,1.72612272,1968.2,1967.5,1.07527089]
[1771665144274,1.72612272,1968.2,1967.4,7.40083483]
[1771665145076,1.72612272,1968.2,1967.5,1.05065654]
[1771665150572,1.72612272,1968.2,1967.4,7.35327004]
[1771665150779,1.73124971,1968.0,1967.3,7.35327004]
[1771665152880,1.73124971,1968.0,1967.4,1.00001555]
[1771665153381,1.73124971,1968.0,1967.5,0.9963167]
[1771665155683,1.73124971,1968.0,1967.4,1.65326919]
[1771665155879,1.73124971,1968.0,1967.4,2.64242095]
[1771665156279,1.73124971,1968.0,1967.5,0.98915176]
[1771665159484,1.73124971,1968.0,1967.4,1.65326919]
[1771665159684,1.73124971,1968.0,1967.4,2.6277428]
[1771665162787,1.73124971,1968.0,1967.4,0.97447361]
[1771665178794,1.73124971,1968.0,1967.3,6.34495181]
[1771665179094,1.73124971,1968.0,1967.3,7.23345672]
[1771665182596,1.73124971,1968.0,1967.4,0.9104092]
[1771665182795,1.73124971,1968.0,1967.5,0.9104092]
[1771665182996,1.68172758,1968.1,1967.7,0.9104092]
[1771665183391,5.94983224,1968.3,1967.7,0.9104092]
[1771665183592,1.68172758,1968.2,1967.7,0.9104092]
[1771665218519,1.68172758,1968.2,1967.5,7.21155824]
[1771665218715,1.68172758,1968.2,1967.5,0.86660643]
[1771665239333,1.68172758,1968.2,1967.6,0.90387167]
[1771665250844,1.68172758,1968.2,1967.5,6.34495181]
[1771665251246,1.68172758,1968.2,1967.5,7.24815215]
[1771665260751,1.68172758,1968.2,1967.5,0.90320034]
[1771665267667,1.68172758,1968.2,1967.4,0.91393464]
[1771665268864,1.68172758,1968.2,1967.3,6.34495181]
[1771665269358,1.68172758,1968.2,1967.3,7.25932983]
[1771665269564,1.68172758,1968.2,1967.4,0.91381793]
[1771665274372,1.68172758,1968.2,1967.6,0.92555903]
[1771665310411,1.68172758,1968.2,1967.8,0.93727265]
[1771665324815,1.63102398,1968.4,1967.9,0.92118548]
[1771665336624,1.63102398,1968.6,1968.0,0.91651709]
[1771665338527,5.79754695,1969.1,1968.2,1.16687691]
[1771665338823,1.52826749,1969.1,1968.5,1.16687691]
[1771665339527,1.53196267,1969.1,1968.5,1.17113452]
[1771665344123,1.52826749,1969.6,1968.7,1.20888471]
[1771665345030,1.5336754,1969.6,1968.7,1.20888471]
[1771665354533,0.00540791,1969.6,1969.1,1.49867859]
[1771665354728,1.52826749,1970.0,1969.3,1.49867859]
[1771665355529,1.65261189,1970.9,1969.6,1.49867859]
[1771665355726,1.52826749,1970.8,1969.6,1.49867859]
[1771665356326,1.52826749,1970.8,1969.7,1.49867859]
[1771665359732,1.52826749,1970.8,1970.0,1.49867859]
[1771665360033,1.52826749,1970.8,1970.0,1.50435122]
[1771665360231,1.53200275,1970.9,1970.3,1.49867859]
[1771665361336,1.52826749,1971.1,1970.3,1.49867859]
[1771665361535,1.52826749,1971.8,1970.6,1.49867859]
[1771665362233,1.52826749,1971.7,1970.6,1.49867859]
[1771665362738,1.52826749,1971.4,1970.2,1.49867859]
[1771665364941,1.52826749,1971.2,1970.2,1.49867859]
[1771665366442,2.01475382,1972.2,1970.2,1.49867859]
[1771665366443,1.52826749,1972.1,1971.1,1.49867859]
[1771665366940,1.52826749,1972.1,1970.7,0.25379]
[1771665366941,1.52826749,1972.1,1971.3,1.49867859]
[1771665367135,1.52826749,1972.0,1971.0,1.49867859]
[1771665367734,1.53201948,1972.0,1971.0,1.49867859]
[1771665369145,1.51299748,1972.0,1971.0,1.49867859]
[1771665369445,1.39107431,1971.8,1970.8,1.43257436]
[1771665373746,1.39107431,1971.8,1970.7,1.68636436]
[1771665374047,1.39107431,1971.8,1970.7,1.43257436]
[1771665374436,1.39107431,1971.6,1970.7,1.43257436]
[1771665374635,1.39107431,1971.6,1970.3,1.43257436]
[1771665375638,1.39107431,1971.3,1970.3,1.43257436]
[1771665377043,1.39107431,1971.2,1970.3,1.43257436]
[1771665377942,1.39107431,1971.2,1970.1,0.25387]
[1771665377943,1.39107431,1971.2,1970.2,1.43257436]
[1771665378342,1.39107431,1971.2,1970.1,1.43257436]
[1771665378647,1.39107431,1970.9,1970.0,1.43824699]
[1771665385849,1.39107431,1970.9,1970.0,0.00567263]
[1771665386050,1.39107431,1970.6,1970.0,0.00567263]
[1771665386245,1.39687535,1970.6,1970.0,0.00567263]
[1771665386451,1.39107431,1970.5,1969.5,1.43257436]
[1771665387547,1.39107431,1970.5,1969.5,0.00650664]
[1771665387752,1.65841293,1970.6,1969.5,0.00650664]
[1771665387753,1.39107431,1970.2,1969.5,1.439081]
[1771665388350,1.39107431,1970.3,1969.5,1.439081]
[1771665393658,1.39107431,1970.5,1969.5,1.439081]
[1771665397065,1.39107431,1970.5,1969.6,1.43257436]
[1771665400369,1.39107431,1970.5,1969.7,1.21067505]
[1771665403375,1.39107431,1970.5,1969.8,1.21067505]
[1771665405173,1.39107431,1970.5,1969.7,4.18747714]
[1771665405374,1.39107431,1970.5,1969.7,5.39815219]
[1771665405874,1.39107431,1970.5,1969.8,1.21067505]
[1771665409177,1.39107431,1970.5,1969.7,4.18747714]
[1771665409376,1.39107431,1970.5,1969.7,1.21067505]
[1771665412076,1.39107431,1970.5,1969.9,1.21067505]
[1771665412278,1.39107431,1970.5,1970.0,2.86022556]
[1771665412481,1.39107431,1970.5,1970.1,1.21067505]
[1771665413782,1.39107431,1970.5,1970.0,1.64955051]
[1771665413978,1.39107431,1970.5,1969.8,7.0477027]
[1771665414282,1.39107431,1970.5,1969.9,1.21067505]
[1771665417381,1.39107431,1970.5,1970.1,1.21067505]
[1771665420582,1.39107431,1970.5,1969.9,4.18747714]
[1771665420777,1.39107431,1970.5,1969.8,4.18747714]
[1771665421480,1.39107431,1970.5,1969.8,5.39815219]
[1771665422992,1.39107431,1970.5,1969.9,1.21067505]
[1771665423294,1.21268665,1970.6,1970.1,1.21067505]
[1771665424188,1.21268665,1970.6,1970.3,1.21067505]
[1771665428502,0.99409504,1970.8,1970.5,1.04608694]
[1771665429001,4.21359145,1971.3,1970.5,1.04608694]
[1771665429200,1.04189116,1971.2,1970.5,1.04608694]
[1771665429505,1.04762267,1971.2,1970.5,1.04608694]
[1771665430199,1.04762267,1971.2,1970.6,2.60398893]
[1771665432996,1.04762267,1971.2,1970.7,0.95443842]
[1771665440202,1.04189116,1971.1,1970.3,0.95443842]
[1771665441001,1.64955051,1971.0,1970.3,0.95443842]
[1771665441207,1.04189116,1970.9,1970.3,0.95443842]
[1771665441411,1.04189116,1970.9,1970.2,2.60398893]
[1771665444104,1.04189116,1970.9,1970.2,0.95443842]
[1771665446311,0.36997266,1971.9,1971.6,6.24026]
[1771665446507,1.04189116,1972.8,1971.8,1.64955051]
[1771665446709,1.04189116,1972.8,1972.3,1.64955051]
[1771665447007,1.04189116,1972.9,1972.6,0.66462068]
[1771665447212,1.64955051,1973.0,1972.7,4.37098809]
[1771665447403,0.65865005,1972.9,1972.4,0.72800002]
[1771665448005,0.9298999,1973.0,1972.6,0.95443842]
[1771665448202,0.00600958,1973.0,1972.6,0.95443842]
[1771665448414,1.04790074,1973.0,1972.6,0.95956795]
[1771665452321,1.04790074,1973.0,1972.6,0.00512953]
[1771665453520,1.04790074,1973.0,1971.9,0.95443842]
[1771665454419,1.04790074,1973.0,1971.9,0.95921274]
[1771665459522,1.04790074,1973.0,1972.1,1.58465183]
[1771665460323,1.04077587,1973.0,1972.1,1.58465183]
[1771665461324,1.04499803,1973.0,1972.1,1.58465183]
[1771665466520,1.04499803,1973.0,1972.0,1.58465183]
[1771665469616,1.04499803,1973.0,1972.2,1.58465183]
[1771665470622,0.00422216,1973.0,1972.2,1.58465183]
[1771665470823,0.00422216,1973.0,1972.4,1.58465183]
[1771665471126,1.4755692,1973.2,1972.6,1.58465183]
[1771665472121,1.4792467,1973.2,1972.6,1.58465183]
[1771665472325,1.4792467,1973.2,1972.8,1.58465183]
[1771665473528,1.4792467,1973.2,1972.3,1.58465183]
[1771665473825,1.4792467,1973.2,1972.5,1.58465183]
[1771665474026,1.4792467,1973.2,1972.6,8.25731961]
[1771665474225,1.4792467,1973.2,1972.7,6.67266778]
[1771665474426,1.4792467,1973.2,1972.8,6.67266778]
[1771665474626,1.4792467,1973.2,1972.9,6.67266778]
[1771665474830,1.4792467,1973.2,1972.6,1.58465183]
[1771665475126,1.4792467,1973.2,1972.7,8.26699526]
[1771665475323,1.4792467,1973.2,1971.9,0.00477432]
[1771665475324,1.4792467,1973.2,1972.8,6.68234343]
[1771665475526,1.4792467,1973.2,1972.9,4.05778083]
[1771665475722,1.4792467,1973.2,1972.5,1.58465183]
[1771665479930,1.4792467,1973.2,1972.4,1.68108738]
[1771665480232,1.4792467,1973.2,1972.3,8.00595563]
[1771665480432,1.4792467,1973.2,1972.2,1.68108738]
[1771665484340,1.4792467,1973.2,1972.3,1.69568404]
[1771665487538,1.4792467,1973.2,1972.5,1.69578474]
[1771665487737,1.4792467,1973.2,1972.2,6.32559831]
[1771665487738,1.4792467,1973.2,1972.7,1.69578474]
[1771665487935,1.4792467,1973.2,1972.8,6.46022992]
[1771665488135,1.4792467,1973.2,1972.7,1.69578474]
[1771665488335,1.4792467,1973.2,1972.8,6.46053185]
[1771665488638,1.4792467,1973.2,1972.7,1.69578474]
[1771665488835,1.4792467,1973.2,1972.8,6.46029697]
[1771665489029,1.4792467,1973.2,1972.7,1.69578474]
[1771665489229,1.4792467,1973.2,1972.8,5.99320126]
[1771665489429,1.4792467,1973.2,1972.5,1.69578474]
[1771665495747,1.4792467,1973.2,1971.9,7.91260892]
[1771665495748,1.7327167,1973.2,1972.1,1.73019924]
[1771665501051,1.7327167,1973.2,1971.9,1.73497356]
[1771665501249,1.7327167,1973.2,1972.1,1.73019924]
[1771665501445,1.7327167,1973.2,1972.3,1.73019924]
[1771665501953,1.7327167,1973.2,1972.0,1.73019924]
[1771665502148,1.7327167,1973.2,1971.9,0.00477432]
[1771665502149,1.7327167,1973.2,1972.2,1.73019924]
[1771665502345,1.7327167,1973.2,1972.3,6.32027257]
[1771665502554,1.7327167,1973.2,1972.2,1.73019924]
[1771665502753,1.7327167,1973.2,1972.3,8.05059694]
[1771665502955,1.7327167,1973.2,1972.3,1.73019924]
[1771665503756,1.7327167,1973.2,1972.0,1.73019924]
[1771665503948,1.7327167,1973.2,1972.1,7.93686711]
[1771665504258,0.45774666,1972.7,1971.9,1.73497356]
[1771665513652,0.25352,1972.8,1971.9,1.73497356]
[1771665513962,0.53407376,1972.6,1971.9,1.73497356]
[1771665520864,0.53407376,1972.6,1972.1,1.84637606]
[1771665521373,0.60130017,1972.7,1972.1,1.84637606]
[1771665521864,0.60139997,1972.6,1972.1,1.84637606]
[1771665522260,0.25352,1972.8,1972.1,1.84637606]
[1771665522261,0.60139997,1972.8,1972.1,1.84637606]
[1771665522465,7.42836991,1973.1,1972.3,1.84637606]
[1771665522466,0.60260217,1973.0,1972.3,1.84637606]
[1771665524359,2.24867824,1973.0,1972.3,1.84637606]
[1771665524564,0.60169321,1972.9,1972.3,1.84637606]
[1771665530268,1.1676913,1972.5,1972.1,1.84637606]
[1771665532767,1.1676913,1972.5,1971.9,0.00477432]
[1771665533069,1.1676913,1972.5,1972.0,7.93268108]
[1771665533373,1.1676913,1972.5,1972.0,1.84637606]
[1771665534070,1.1676913,1972.5,1971.9,1.85115038]
[1771665535575,1.2787913,1972.7,1971.9,1.85115038]
[1771665536573,1.2787913,1972.7,1972.1,1.84637606]
[1771665540572,1.2787913,1972.7,1971.9,0.00477432]
[1771665540880,1.30721842,1972.4,1971.9,1.85115038]
[1771665541178,2.95329449,1972.5,1971.9,1.85115038]
[1771665541374,1.64607607,1972.7,1971.9,1.85115038]
[1771665541581,2.95354995,1972.7,1972.1,1.84637606]
[1771665541774,1.30747388,1972.7,1972.1,1.84637606]
[1771665544479,1.31711847,1972.4,1972.0,1.84637606]
[1771665547983,1.34387247,1972.2,1971.9,1.77683365]
[1771665548282,1.34387247,1972.2,1971.9,0.00477432]
[1771665550582,1.34387247,1972.2,1971.4,1.77205933]
[1771665550780,0.25358,1972.4,1971.6,1.77205933]
[1771665550781,1.3563638,1972.0,1971.6,1.77205933]
[1771665551685,1.3563638,1972.0,1971.6,1.77820635]
[1771665553390,1.35367324,1971.8,1971.3,1.77205933]
[1771665554385,1.3594632,1971.8,1971.3,1.77691098]
[1771665557286,0.00578996,1971.8,1971.3,1.77691098]
[1771665557881,1.34416073,1971.8,1971.3,1.77691098]
[1771665558684,0.00578996,1971.8,1971.3,1.77691098]
[1771665559586,1.33609543,1972.1,1971.4,1.77205933]
[1771665560583,1.34198588,1972.1,1971.4,1.77205933]
[1771665565993,0.00589045,1972.1,1971.4,1.77205933]
[1771665566192,0.00589045,1972.1,1971.6,1.77205933]
[1771665567689,3.23513171,1972.4,1971.6,1.77205933]
[1771665567890,1.33419453,1972.5,1971.8,1.77205933]
[1771665568086,2.9802706,1972.4,1971.8,1.77205933]
[1771665568692,2.98540002,1972.4,1971.8,1.77205933]
[1771665568902,1.64607607,1972.2,1971.6,1.77205933]
[1771665569102,2.97604768,1972.2,1971.6,1.77205933]
[1771665570402,1.32907504,1972.1,1971.6,1.77205933]
[1771665575105,1.32907504,1972.1,1971.4,1.77205933]
[1771665585216,1.31176922,1972.3,1971.4,1.77205933]
[1771665588914,1.30902599,1972.4,1971.5,1.79380877]
[1771665589709,1.30902599,1972.4,1971.6,1.79380877]
[1771665590618,0.00512942,1972.4,1971.6,1.79380877]
[1771665591618,0.00512942,1972.4,1971.7,1.79380877]
[1771665596010,1.24994353,1972.7,1971.8,1.79380877]
[1771665597111,1.25479168,1972.7,1971.8,1.79380877]
[1771665600521,1.24673472,1972.4,1971.8,1.79380877]
[1771665602329,1.24673472,1972.4,1971.5,1.79380877]
[1771665605932,1.48794154,1972.6,1971.8,1.79380877]
[1771665608436,0.00484815,1972.7,1971.8,1.79380877]
[1771665608837,1.22329478,1972.7,1971.8,1.79380877]
[1771665615943,1.22329478,1972.7,1971.9,1.74067907]
[1771665619545,0.00484815,1972.7,1971.9,1.74067907]
[1771665619741,0.00484815,1972.7,1971.9,5.96377488]
[1771665620041,0.00484815,1972.7,1972.0,1.74067907]
[1771665622348,0.00484815,1972.7,1972.1,1.74067907]
[1771665623346,1.45681062,1972.7,1972.1,1.74067907]
[1771665630154,0.00484815,1972.7,1972.1,1.74067907]
[1771665630355,1.42122501,1972.7,1972.1,1.74067907]
[1771665632850,0.00484815,1972.7,1972.1,1.74067907]
[1771665640765,1.37544303,1972.4,1972.0,1.77370254]
[1771665641058,1.37544303,1972.5,1972.0,1.77370254]
[1771665641254,3.02607862,1972.7,1972.0,1.77370254]
[1771665641960,1.37216508,1972.6,1972.0,1.77370254]
[1771665650766,1.64578744,1972.5,1972.0,1.77370254]
[1771665650966,1.32353027,1972.4,1972.0,1.77370254]
[1771665652067,2.96598707,1972.3,1971.7,1.77370254]
[1771665652366,1.32019963,1972.2,1971.7,1.77370254]
[1771665654868,1.65063559,1972.7,1971.8,1.77370254]
[1771665654869,1.30144498,1972.6,1971.8,1.77370254]
[1771665655471,1.30144498,1972.6,1971.3,0.00485165]
[1771665655472,10.325,1974.2,1973.2,6.23531]
[1771665655672,1.87842763,1976.4,1974.5,6.23127]
[1771665655883,1.64578744,1976.6,1974.5,6.23127]
[1771665655884,1.87842763,1976.2,1975.4,1.64578744]
[1771665656070,49.21355608,1976.2,1976.1,6.30688493]
[1771665656268,4.84366258,1976.0,1975.7,0.50864494]
[1771665656571,1.87842763,1976.4,1975.9,1.77370254]
[1771665656766,6.72209021,1976.3,1976.0,7.97510148]
[1771665656972,2.24799559,1977.2,1976.3,1.77370254]
[1771665657170,1.87842763,1976.8,1976.4,7.97510148]
[1771665657463,1.88329945,1976.8,1976.5,7.97510148]
[1771665657664,0.00487182,1976.8,1976.6,6.80710149]
[1771665657864,0.00487182,1976.8,1976.1,4.16299721]
[1771665657865,1.88329945,1976.8,1976.1,1.77370254]
[1771665658061,1.88329945,1976.8,1975.9,4.16299721]
[1771665658265,1.87842763,1976.4,1975.9,1.77370254]
[1771665658670,1.88329945,1976.8,1975.9,1.77370254]
[1771665658870,43.41467115,1976.7,1975.9,1.77370254]
[1771665659070,1.87842763,1976.7,1975.9,1.77370254]
[1771665659271,0.00487182,1976.8,1975.9,5.93669975]
[1771665659465,0.00487182,1976.8,1975.9,1.77370254]
[1771665661469,1.87842763,1976.6,1975.9,1.77370254]
[1771665664374,6.117485,1977.6,1976.3,2.45900312]
[1771665664568,6.117485,1977.6,1976.4,6.639]
[1771665664873,6.14712524,1977.2,1976.2,7.053]
[1771665665075,6.14712524,1977.1,1976.1,4.16299721]
[1771665665367,6.14712524,1977.1,1975.8,0.94180797]
[1771665665368,26.98282419,1976.8,1975.8,0.94180797]
[1771665665573,6.14712524,1976.7,1975.8,0.94180797]
[1771665666075,6.22220721,1976.5,1975.8,0.94180797]
[1771665667169,0.0057155,1976.8,1976.0,0.44756494]
[1771665667369,6.38405441,1977.4,1976.1,0.44184944]
[1771665668273,6.54784073,1977.3,1976.1,0.44184944]
[1771665668472,6.5528351,1977.3,1976.1,0.44184944]
[1771665668773,6.5528351,1977.3,1975.7,2.46322227]
[1771665668774,6.5528351,1977.3,1976.4,0.5875865]
[1771665670370,6.32277193,1977.2,1976.4,0.5875865]
[1771665671276,6.59588982,1977.0,1976.4,0.5875865]
[1771665671577,33.57871401,1977.2,1976.4,0.5875865]
[1771665671775,6.59588982,1977.2,1976.4,0.5875865]
[1771665672076,6.5937211,1977.1,1976.4,0.5875865]
[1771665672771,6.5937211,1977.0,1975.8,4.08570795]
[1771665672976,6.62085698,1977.2,1975.9,10.43039795]
[1771665673176,6.62085698,1977.2,1976.0,7.97139483]
[1771665673476,6.62085698,1977.2,1976.1,7.97139483]
[1771665673678,6.62085698,1977.2,1976.2,7.97139483]
[1771665673975,6.62085698,1977.2,1975.9,2.45900312]
[1771665674172,6.62085698,1977.2,1976.0,7.97105251]
[1771665674475,6.62085698,1977.2,1975.9,2.45900312]
[1771665674476,6.62085698,1977.2,1976.1,7.97105251]
[1771665674671,6.62085698,1977.2,1976.2,7.97105251]
[1771665674871,6.62085698,1977.2,1975.9,2.45900312]
[1771665675170,6.62085698,1977.2,1976.0,7.97105206]
[1771665675370,6.62085698,1977.2,1975.9,2.45900312]
[1771665675371,6.62085698,1977.2,1976.1,7.97105206]
[1771665675577,6.62085698,1977.2,1976.2,7.97105206]
[1771665675770,6.62085698,1977.2,1975.9,6.54471107]
[1771665675970,6.62085698,1977.2,1976.0,7.97104072]
[1771665676170,6.62085698,1977.2,1976.1,7.97104072]
[1771665676371,6.61217667,1977.1,1976.2,7.97104072]
[1771665676576,6.61217667,1977.1,1976.3,7.97104072]
[1771665676778,6.61217667,1977.1,1976.0,4.08570795]
[1771665676973,6.61217667,1977.1,1976.1,7.97104747]
[1771665677173,6.61217667,1977.1,1976.2,7.97104747]
[1771665677369,6.61217667,1977.1,1976.3,7.97104747]
[1771665677674,6.61217667,1977.1,1976.0,4.08570795]
[1771665677874,6.61217667,1977.1,1976.1,7.97104049]
[1771665678079,6.61217667,1977.1,1976.2,7.97104049]
[1771665678270,6.61217667,1977.1,1976.3,7.97104049]
[1771665678470,6.61217667,1977.1,1976.4,7.97104049]
[1771665678674,6.59228898,1977.0,1976.1,4.08570795]
[1771665678876,6.59228898,1977.0,1976.2,7.97103959]
[1771665679070,6.59228898,1977.0,1976.3,7.97103959]
[1771665679278,6.59228898,1977.0,1976.4,7.97103959]
[1771665679478,6.59228898,1977.0,1976.1,4.08570795]
[1771665679681,6.59228898,1977.0,1976.2,7.9710391]
[1771665679880,6.59228898,1977.0,1976.3,7.9710391]
[1771665680181,33.57511317,1977.0,1976.4,7.9710391]
[1771665680370,6.58998378,1977.2,1976.5,7.9710391]
[1771665680571,6.58998378,1977.1,1976.3,4.08570795]
[1771665680771,6.58998378,1977.1,1976.4,7.97101582]
[1771665680976,6.58998378,1977.1,1976.5,7.97101582]
[1771665681175,26.98282419,1976.9,1976.6,7.97101582]
[1771665681375,6.61667729,1976.9,1976.7,7.97101582]
[1771665681580,26.98282419,1976.8,1976.3,4.08570795]
[1771665681781,26.98282419,1976.8,1976.4,7.97101582]
[1771665681980,26.98282419,1976.8,1976.5,7.97101582]
[1771665682181,26.98282419,1976.8,1976.6,7.97101582]
[1771665682373,26.98282419,1976.8,1976.7,7.97101582]
[1771665682579,6.61431372,1977.2,1976.7,7.97101582]
[1771665682778,26.98282419,1976.8,1976.4,4.08570795]
[1771665682980,6.61431372,1977.0,1976.5,7.97101517]
[1771665683179,33.58091995,1976.8,1976.6,7.97101517]
[1771665683381,6.32277193,1977.2,1976.7,7.97101517]
[1771665683586,6.32277193,1977.2,1976.8,7.97101517]
[1771665683881,6.32277193,1977.2,1976.8,4.08570795]
[1771665684081,6.32277193,1977.2,1976.8,3.70938906]
[1771665684276,25.33457101,1976.9,1976.6,12.65365887]
[1771665684485,6.32277193,1977.2,1976.6,4.99295646]
[1771665684685,19.01179908,1976.8,1976.6,4.99295646]
[1771665684885,6.32277193,1977.0,1976.6,4.99295646]
[1771665685085,6.32277193,1977.0,1976.3,7.66070241]
[1771665685282,18.18939195,1976.8,1976.5,6.13109921]
[1771665685485,6.32277193,1976.9,1976.5,6.13109921]
[1771665685680,17.70388242,1976.6,1976.5,6.13109921]
[1771665685882,17.0459332,1976.6,1976.5,2.50602484]
[1771665686578,8.47547779,1976.6,1976.5,8.77812615]
[1771665686777,6.32277193,1977.0,1976.6,0.09491307]
[1771665686985,6.32277193,1977.0,1976.6,6.36662347]
[1771665687485,6.32277193,1977.0,1976.5,7.26324193]
[1771665688287,6.32277193,1977.0,1976.5,6.2717104]
[1771665688481,6.32277193,1977.0,1976.5,7.67626918]
[1771665688883,6.32277193,1977.0,1976.5,6.2717104]
[1771665689283,7.57616448,1977.2,1976.6,1.21634044]
[1771665689482,7.57616448,1977.6,1976.9,1.21003897]
[1771665689681,0.07502938,1977.6,1977.3,1.21129715]
[1771665689988,7.57553539,1977.9,1977.3,6.2717104]
[1771665690182,7.57553539,1977.9,1977.2,6.2717104]
[1771665690383,7.57553539,1977.9,1977.1,7.40797817]
[1771665690578,7.58106633,1977.9,1977.1,1.14190799]
[1771665691191,7.58106633,1977.9,1977.2,1.72325476]
[1771665693285,7.58106633,1977.9,1977.1,6.27735062]
[1771665693286,7.58106633,1977.9,1977.3,1.66966905]
[1771665695990,7.58106633,1977.9,1977.4,8.83177404]
[1771665696191,7.58106633,1977.9,1977.5,7.15520315]
[1771665696385,7.58106633,1977.9,1977.6,7.15520315]
[1771665696692,7.58106633,1977.9,1977.7,7.15520315]
[1771665696892,7.58106633,1977.9,1977.8,5.98720316]
[1771665697590,7.58106633,1977.9,1977.8,5.61528086]
[1771665697789,7.58106633,1977.9,1977.3,1.67912476]
[1771665698094,7.58106633,1977.9,1977.1,6.27735062]
[1771665698095,7.58106633,1977.9,1977.2,5.15872152]
[1771665704891,0.00553094,1977.9,1977.3,5.71740606]
[1771665706191,0.65039314,1978.0,1977.3,5.71740606]
[1771665706399,0.65039314,1978.0,1977.4,5.70885958]
[1771665707188,0.65411874,1978.0,1977.4,5.70885958]
[1771665708192,8.6822179,1978.0,1977.4,5.70885958]
[1771665708394,8.6822179,1978.0,1977.3,5.68904247]
[1771665708595,8.02809916,1978.5,1977.4,5.67819936]
[1771665708792,8.02809916,1978.5,1977.5,5.696074]
[1771665709495,8.03348901,1978.5,1977.5,5.696074]
[1771665709892,8.71816905,1978.5,1977.7,5.72531038]
[1771665710088,8.71816905,1978.5,1977.8,6.8530571]
[1771665710293,8.71816905,1978.5,1977.9,6.8530571]
[1771665710494,8.71816905,1978.5,1977.6,5.72531038]
[1771665710495,8.71816905,1978.5,1978.0,6.8530571]
[1771665710694,8.71816905,1978.5,1977.7,5.71383135]
[1771665710894,8.71816905,1978.5,1977.8,6.79231215]
[1771665711096,8.71816905,1978.5,1977.9,6.79231215]
[1771665711298,8.71816905,1978.5,1978.0,6.79231215]
[1771665711597,8.71816905,1978.5,1977.7,5.71383135]
[1771665711796,8.71816905,1978.5,1977.8,12.37324327]
[1771665711994,8.71816905,1978.5,1977.9,6.79191174]
[1771665712194,8.71816905,1978.5,1978.0,6.79191174]
[1771665712399,8.71816905,1978.5,1977.8,5.58133153]
[1771665712600,8.71816905,1978.5,1977.9,6.79232163]
[1771665712800,8.71816905,1978.5,1977.7,5.65209138]
[1771665712997,8.71816905,1978.5,1977.8,6.54944711]
[1771665713202,8.71816905,1978.5,1977.9,6.55024773]
[1771665713396,8.71816905,1978.5,1977.7,5.65209138]
[1771665713591,8.71816905,1978.5,1977.8,6.55022438]
[1771665713802,8.71816905,1978.5,1977.7,5.65209138]
[1771665714801,8.71816905,1978.5,1977.2,5.48695941]
[1771665715003,8.71816905,1978.5,1977.4,5.48695941]
[1771665715199,8.71816905,1978.5,1977.5,11.43179603]
[1771665715400,8.71816905,1978.5,1977.5,5.48695941]
[1771665715701,8.71816905,1978.5,1977.2,5.47440024]
[1771665715898,8.71816905,1978.5,1977.1,0.00564022]
[1771665715899,8.71816905,1978.5,1977.3,11.42513042]
[1771665716097,8.71816905,1978.5,1977.3,5.47648355]
[1771665716601,8.71816905,1978.5,1977.1,5.46935264]
[1771665716802,8.71816905,1978.5,1977.2,11.40791513]
[1771665717000,8.71816905,1978.5,1977.3,5.95212943]
[1771665717201,8.71816905,1978.5,1977.4,5.95557778]
[1771665717402,8.71816905,1978.5,1977.2,5.4557857]
[1771665717602,8.71816905,1978.5,1977.3,5.95565758]
[1771665717798,8.71816905,1978.5,1977.4,5.95565758]
[1771665718003,8.71816905,1978.5,1977.2,5.4557857]
[1771665718202,8.02809916,1978.3,1977.1,0.00564022]
[1771665719001,8.02809916,1978.1,1977.1,5.49196489]
[1771665719208,8.730606,1978.1,1977.1,0.00564022]
[1771665722301,8.730606,1978.1,1977.1,5.38190595]
[1771665722507,8.730606,1978.1,1977.1,0.00564022]
[1771665722706,8.730606,1978.1,1976.6,5.36239278]
[1771665722906,8.730606,1978.1,1976.8,5.33130701]
[1771665723812,8.730606,1978.1,1976.8,5.33566671]
[1771665724813,8.02809916,1977.9,1976.8,0.0043597]